Cogmind - Beta 16.1 @@@ ROGUE MODE // 2026.02.10 @ 08:52:41 Player: Lintence Result: Self-destructed Performance ------------- Evolutions (1) 500 Regions Visited (2) 400 Robots Destroyed (6) 30 Value Destroyed (69) 69 Prototype IDs (0) 0 Alien Tech Used (0) 0 Bonus (0) 0 TOTAL SCORE: 999 Bonus ------- None Cogmind --------- Core Integrity 400/400 Matter 89/300 Energy 24/125 System Corruption 0% Temperature Cool (0) Movement Hovering (52) Location -9/Materials Parts ------- > --- POWER (1) -------- Light Ion Engine > --- PROPULSION (3) --- Improved Hover Unit Improved Hover Unit Improved Hover Unit > --- UTILITY (3) ------ Small Storage Unit Structural Scanner Improved Terrain Scanner > --- WEAPON (2) ------- Heavy EM Pulse Gun Heavy EM Pulse Gun > --- INVENTORY (8) ---- Light Ion Engine Hover Unit Hover Unit Hover Unit Improved Hover Unit Peak State ------------ > --- POWER ------------ Light Ion Engine > --- PROPULSION ------- Improved Hover Unit Improved Hover Unit Improved Hover Unit > --- UTILITY ---------- Small Storage Unit Structural Scanner Improved Terrain Scanner > --- WEAPON ----------- Heavy EM Pulse Gun Heavy EM Pulse Gun > --- INVENTORY -------- Light Ion Engine Hover Unit Hover Unit Improved Hover Unit [Rating: 16] Favorites ----------- Power Ion Engine Engine Ion Engine Propulsion Aluminum Leg Leg Aluminum Leg Hover Unit Improved Hover Unit Utility Small Storage Unit Device Structural Scanner Storage Small Storage Unit Weapon EM Pulse Gun Energy Gun EM Pulse Gun Ballistic Gun Light Assault Rifle Build | -11 -10 -9 ------- Run | Yrd Mat Mat Slots Evolved 2 | . . 2 Power . | . . . Propulsion 1 | . . 1 Utility 1 | . . 1 Weapon . | . . . Parts Attached 20 | 8 8 4 Power 2 | 2 . . Engine 2 | 2 . . Core . | . . . Reactor . | . . . Propulsion 7 | 2 3 2 Treads . | . . . Leg 3 | 2 1 . Wheel . | . . . Hover 4 | . 2 2 Flight . | . . . Utility 4 | 2 2 . Device 3 | 1 2 . Storage 1 | 1 . . Processor . | . . . Hackware . | . . . Protection . | . . . Artifact . | . . . Weapon 7 | 2 3 2 Energy Gun 6 | 1 3 2 Energy Cannon . | . . . Ballistic Gun 1 | 1 . . Ballistic Cannon . | . . . Launcher . | . . . Special Weapon . | . . . Impact Weapon . | . . . Slashing Weapon . | . . . Piercing Weapon . | . . . Special Melee Weapon . | . . . Unidentified Prototypes . | . . . Parts Lost . | . . . Power . | . . . Propulsion . | . . . Utility . | . . . Weapon . | . . . Highest Loss Streak . | . . . To Critical Strikes . | . . . Average Backups 5 | 1 7 5 Power . | . . 1 Propulsion 2 | . 3 3 Utility . | . 1 . Weapon 1 | . 1 . Tool/Special . | . . . Unused Backups 11 | . 8 3 Power 1 | . . 1 Propulsion 6 | . 4 2 Utility 1 | . 1 . Weapon 3 | . 3 . Tool/Special . | . . . Average Slot Usage (%) 95 | . 96 91 Engine 13 | . 14 11 Leg 14 | . 16 . Hover 13 | . 10 33 Device 14 | . 14 19 Storage 13 | . 14 11 Energy Gun 19 | . 20 16 Ballistic Gun 4 | . 5 . Peak Build Rating 16 | 7 11 16 Average Rating 8 | 5 8 15 On Entrance 5 | . 7 8 Avg Prop Armor Cover (%) . | . . . Naked Turns . | . . . Heaviest Build 16 | 13 15 16 Greatest Support 21 | 20 20 21 Greatest Overweight (x) 2 | . 2 . Average Overweight (x) . | . . . Largest Inventory Capacity 8 | 8 8 8 Average Capacity 7 | 7 8 8 Most Carried 8 | 3 8 7 Average Carried 5 | 1 7 4 Final Capacity 8 | 8 8 8 Final Carried 8 | 3 8 5 Class Distribution -------------------- 100% | Mutant Dominant Class ---------------- Mutant | -10/Materials Mutant | -9/Materials Resources | -11 -10 -9 ----------- Run | Yrd Mat Mat Matter Collected 259 | 183 59 17 Remotely . | . . . Salvage Created 95 | 19 59 17 Parts 11 | 3 6 2 Haulers Intercepted . | . . . Recyclers Shooed . | . . . Parts Field Recycled . | . . . Retrieved Matter . | . . . Parts Self-Destructed . | . . . Prevented . | . . . Parts Restored . | . . . Kills | -11 -10 -9 ------- Run | Yrd Mat Mat Combat Hostiles Destroyed 3 | . 3 . Guns 3 | . 3 . Classes Destroyed 4 | 1 2 1 Tunneler 1 | 1 . . Operator 1 | . . 1 Watcher 1 | . 1 . Swarmer 3 | . 3 . Best Kill Streak 3 | 1 3 1 Combat Bots Only 3 | . 3 . Max Kills in Single Turn 1 | 1 1 1 Gunslinging . | . . . Exploded . | . . . Melee . | . . . Uniques/NPCs Destroyed . | . . . Combat | -11 -10 -9 -------- Run | Yrd Mat Mat Hostile Shots Fired 18 | . 16 2 Missed 4 | . 2 2 Hits 14 | . 14 . Projectile 14 | . 14 . Critical Strikes 1 | . 1 . Damage Taken 127 | . 127 . Core 35 | . 35 . Absorbed by Shields . | . . . Core Remaining (%) 93 | 100 86 . Volleys Fired 15 | 3 8 4 Largest 2 | 2 2 2 Hottest 90 | 60 85 90 Shots Fired 27 | 6 16 5 Gun 27 | 6 16 5 Cannon . | . . . Launcher . | . . . Special . | . . . Kinetic 10 | 3 7 . Thermal 10 | 3 7 . Explosive . | . . . Electromagnetic 7 | . 2 5 Robot Hit Streak 5 | 5 3 1 Robot Miss Streak 2 | . 2 2 Penetration Max . | . . . Secondary Targets . | . . . Shots Hit Robots 15 | 5 9 1 Core Hits 10 | 3 6 1 Critical Kills . | . . . Critical Parts Destroyed 1 | . 1 . Critical Strikes 1 | . 1 . Destroy 1 | . 1 . Melee Attacks . | . . . Impact . | . . . Slashing . | . . . Piercing . | . . . Sneak Attacks . | . . . Combat Hostiles . | . . . Follow-up Attacks . | . . . Damage Inflicted 189 | 51 119 19 Guns 189 | 51 119 19 Cannons . | . . . Explosions . | . . . Melee . | . . . Ramming . | . . . Kinetic 64 | 18 46 . Thermal 86 | 33 53 . Explosive . | . . . Electromagnetic 39 | . 20 19 Impact . | . . . Slashing . | . . . Piercing . | . . . Highest Corruption . | . . . Average Corruption . | . . . Corruption Purged . | . . . Corruption Blocked . | . . . Overload Shots . | . . . Overflow Damage . | . . . Projectiles . | . . . Explosions . | . . . Melee . | . . . Knockbacks . | . . . Impact . | . . . Kinetic . | . . . Secondary . | . . . Self-Inflicted Damage . | . . . Shots . | . . . Rammed . | . . . Targets Rammed . | . . . Kicked . | . . . Crushed . | . . . Highest Temperature 40 | 40 40 37 Average Temperature 20 | 23 21 15 Received Heat Transfer 12 | . 12 . Siege Activations . | . . . Martial Activations . | . . . Shielding Activations . | . . . Robots Disrupted . | . . . Combat Hostiles . | . . . Robots Corrupted . | . . . Combat Hostiles . | . . . Parts Fried . | . . . Impact Corruptions . | . . . Robots Melted . | . . . Combat Hostiles . | . . . Parts Melted . | . . . Heat Transferred 200 | 75 125 . Parts Sabotaged . | . . . Parts Stolen . | . . . Parts Stripped . | . . . Power Chain Reactions . | . . . Alert | -11 -10 -9 ------- Run | Yrd Mat Mat Maximum Alert Level . | . . . Low Security (%) 100 | 100 100 100 Level 1 . | . . . Level 2 . | . . . Level 3 . | . . . Level 4 . | . . . Level 5 . | . . . High Security . | . . . Max Security . | . . . Peak Influence 60 | 5 60 5 Initial 3 | . 3 . Average 13 | 1 18 1 Influence Increases 87 | 5 77 5 Destroy 0b10 Robot/C 60 | . 60 . Destroy 0b10 Robot/NC 15 | 5 5 5 Destroy Leader 12 | . 12 . Influence Decreases 87 | . 82 5 Entered New Map 2 | . 2 . Time Decay 85 | . 80 5 Squads Dispatched 1 | . 1 . Investigation . | . . . Extermination . | . . . Reinforcement 1 | . 1 . Assault . | . . . Garrison . | . . . Intercept . | . . . Searches Triggered . | . . . Construction Impeded . | . . . Haulers Reinforced . | . . . Active Scanning Responses . | . . . Cargo Convoy Interrupts . | . . . Stealth | -11 -10 -9 --------- Run | Yrd Mat Mat Distress Signals 1 | . 1 . Communications Jammed . | . . . Distress Signals . | . . . Times Spotted 11 | . 7 4 Peak Tracking Total 3 | . 3 3 Tactical Retreats . | . . . Traps | -11 -10 -9 ------- Run | Yrd Mat Mat Traps Triggered 3 | . 3 . Indirectly . | . . . Trap Hack Attempts . | . . . Triggered . | . . . Disarmed . | . . . Reprogrammed . | . . . Reused . | . . . Traps Extracted . | . . . Installed . | . . . Triggered . | . . . Machines | -11 -10 -9 ---------- Run | Yrd Mat Mat Machines Disabled . | . . . Max in Single Turn . | . . . Machines Repaired . | . . . Machines Dismantled . | . . . Machines Sabotaged . | . . . Overloaded Fab Kills . | . . . Hacking | -11 -10 -9 --------- Run | Yrd Mat Mat Machines Accessed 2 | . 1 1 Terminals 2 | . 1 1 Fabricators . | . . . Repair Stations . | . . . Recycling Units . | . . . Scanalyzers . | . . . Garrison Access . | . . . Total Hacks 3 | . 2 1 Successful 2 | . 2 . Failed 1 | . . 1 Catastrophic . | . . . Database Lockouts . | . . . Manual . | . . . Terminals 3 | . 2 1 Fabricators . | . . . Repair Stations . | . . . Recycling Units . | . . . Scanalyzers . | . . . Garrison Access . | . . . Terminal Hacks 2 | . 2 . Record 2 | . 2 . Fabricator Hacks . | . . . Repair Station Hacks . | . . . Recycling Unit Hacks . | . . . Scanalyzer . | . . . Garrison Access Hacks . | . . . Unauthorized Hacks . | . . . Terminals . | . . . Fabricators . | . . . Repair Stations . | . . . Recycling Units . | . . . Scanalyzers . | . . . Garrison Access . | . . . Data Cores Recovered 1 | . . 1 Used . | . . . Hacking Detections 2 | . 1 1 Full Trace Events . | . . . Feedback Events . | . . . Feedback Blocked . | . . . Robot Schematics Acquired . | . . . Robots Built . | . . . Authchips . | . . . Time . | . . . Total Robot Build Rating . | . . . Part Schematics Acquired . | . . . Parts Built . | . . . Authchips . | . . . Time . | . . . Total Part Build Rating . | . . . Part Studies Acquired . | . . . Parts Repaired . | . . . Time . | . . . Parts Recycled . | . . . Recycled Matter . | . . . Retrieved Matter . | . . . Retrieved Components . | . . . Parts Scanalyzed . | . . . Part Schematics Acquired . | . . . Parts Damaged . | . . . Bothacking | -11 -10 -9 ------------ Run | Yrd Mat Mat Used RIF Installer . | . . . Robots Hacked . | . . . Non-combat . | . . . Combat . | . . . Robot Hacks Applied . | . . . Relay Couplers Released . | . . . Fabnet Peak Effective % . | . . . Robots Rewired . | . . . Allies Hacked . | . . . Hacks Repelled . | . . . Allies | -11 -10 -9 -------- Run | Yrd Mat Mat Total Allies . | . . . Largest Group . | . . . Highest-Rated Group . | . . . Highest-Rated Ally . | . . . Total Orders . | . . . Ally Attacks . | . . . Total Damage . | . . . Kills . | . . . Allies Corrupted . | . . . Allies Melted . | . . . Intel | -11 -10 -9 ------- Run | Yrd Mat Mat Active Infowar (turns) 287 | 11 247 29 Terrain 31 | . 7 24 Structural 180 | . 151 29 Seismic 100 | 11 89 . Robot Analysis Total . | . . . Derelict Logs Recovered . | . . . Drone Launches . | . . . Drone Recoveries . | . . . Exploration | -11 -10 -9 ------------- Run | Yrd Mat Mat Turns Passed 351 | 75 247 29 Spaces Moved 282 | 48 217 17 Core 6 | 6 . . Treads . | . . . Legs 127 | 42 85 . Wheels . | . . . Hover 149 | . 132 17 Flight . | . . . Fastest Speed 50 | 50 56 52 Average Speed 85 | 111 82 52 Slowest Speed 180 | 120 180 52 Overloaded Moves . | . . . Propulsion Burnouts . | . . . Robots Hopped . | . . . Potential Cave-ins . | . . . Cave-ins Triggered . | . . . Exploration Rate (%) 12 | 4 28 6 Regions Visited 2 Branch Regions . Pre-discovered Areas . | . . . Known Exits Taken . | . . . Unknown Exits Taken 2 | 1 1 . Scrap Searched . | . . . Spaces Dug . | . . . Terrain Destroyed . | . . . Melee . | . . . Projectile . | . . . AOE . | . . . Terrain Rammed . | . . . Walls Destroyed . | . . . Machines Disabled . | . . . Actions | -11 -10 -9 --------- Run | Yrd Mat Mat Total 361 | 60 270 31 Wait 5 | . 1 4 Move 280 | 47 216 17 Hop . | . . . Pick Up 19 | 2 16 1 Fast Attach 15 | 7 8 . Attach 4 | . . 4 Detach . | . . . Swap 7 | 1 5 1 Drop 16 | . 16 . Fire 15 | 3 8 4 Melee . | . . . Ram . | . . . Kick . | . . . Crush . | . . . Escape Stasis . | . . . Rewire . | . . . Trap . | . . . Miscellaneous . | . . . Route ------- -11/Scrapyard -10/Materials (discovered 2 exits: *Mat / [*Min]) -9/Materials History --------- Turn | Location | Event 10 | -11/Scrapyard | Discovered new exit (range 16) 76 | -11/Scrapyard | Entered Materials 122 | -10/Materials | Discovered new exit (range 7) 296 | -10/Materials | Discovered new exit (range 3) 323 | -10/Materials | Entered another Materials area 323 | -9/Materials | Evolved 2 slots: Propulsion x1, Utility x1 349 | -9/Materials | Build established: Mutant 352 | -9/Materials | Self-destructed Last Messages --------------- 00311_ Massive razor-sharp blades shoot up from within the floor. 00311_ Lgt. Ion Engine severed. 00312_ Acquired Imp. Hover Unit. 00314_ ALERT: Hostiles spotted, dispatching reinforcements to Terminal M005. 00314_ Acquired Lgt. Ion Engine. PARAMETERS=PROPULSION+1,UTILITY+1 LOCATION=UNKNOWN GOAL=ESCAPE 00330_ O-16 Technician: "IFF HANDSHAKE FAILED. SECURING TERMINAL." 00334_ O-16 Technician destroyed. 00337_ Acquired 17 matter. 00337_ Acquired data core, extracted dynamic key. 00338_ Acquired Hover Unit. 00344_ K-01 Serf collects debris. 00352_ Connecting with Terminal... 00352_ Current location identified: Materials Map ----- +----------------------------------------------------+ | ????????????????????????????????????????????? | | ????????????????????????????????????????????? | | ????????????????????????????????????????????? | | ????????????????????????????????????????????? | | ????????????????????????????????????????????? | | ????????????????????????????????????????????? | | ????????????????????????????????????????????? | | ????????????????????????????????????????????? | | ????????????????????????????????????????????? | | ???????????????????#####????????????????????? | | ???????????????????###### ??????????????????? | | ??????? + ??????? # ??????????????????? | | ??????? # # ?????? # ??????????????????? | | ??????? # + ?????? Y + ??????????????????? | | ??????? # # ?????? # ??????????????????? | | ??????? # # ?????? #???????????????????? | | ??????? # # ????## ##???????????????????? | | ???????## ##????## ##???????????????????? | | ???????## ##????## ##???????????????????? | | ???????## ##????## ##???????????????????? | | ######### ##????## ##???????????????????? | | ######### ##???### ## ??????????????????? | | #[ # ######## ## ??????????????????? | | # # ####### # ??????????????????? | | # # # ??????????????????? | | # """ # @T + ??????????????????? | | # """ # # ??????????????????? | | # """ + ####### # ??????????????????? | | # # /######## ## ? ????????????????? | | # """ # # ??? # ## ??????????????????? | | # """ # # ???? # ##????#??????????????? | | # """ ##### ???? + w ##???????????????????? | | # ##### ???? # ???????????????????? | | ##########???????? # ???????????????????? | | ##########???????? # ????????????????? | | ????????????#??????##+####+#????????????????? | | ???????????????????# ????????????????? | | ???????????##?????????????? ???????????????? | | ?#??#???????????????????????????????????????? | | ????????????????????????????????????????????? | | ????????????????????????????????????????????? | | ????????????????????????????????????????????? | | ????????????????????????????????????????????? | | ????????????????????????????????????????????? | | ????????????????????????????????????????????? | | ????????????????????????????????????????????? | | ????????????????????????????????????????????? | | | | | | | +----------------------------------------------------+ Best States ------------- Heat Dissipation 28 Energy Generation 10 Energy Capacity 250 Matter Stores 234 Matter Capacity 300 Sight Range 16 Terrain Scan Range 16 Terrain Scan Density 10 Evasion (%) 55 Item Schematics ----------------- None Robot Schematics ------------------ None Fabricated ------------ Nothing Repaired ---------- Nothing Studied --------- None Alien Tech Used ----------------- None Achievements -------------- None Challenges ------------ None Game ------ Seed BlanketTeslaShooter Manual? 0 Play Time 00:11:57 Cumulative 46.5 hours Start 2026.02.10 @ 08:40:37 End 2026.02.10 @ 08:52:41 Sessions 1 Manual Loads 0 Difficulty Rogue Special Mode None Game No. 91 Rogue 91 Adventurer 0 Explorer 0 Win Type - Total 1 Types 1/0/0/0/0/0/0/0/0/0 Lore% 16 Gallery% 29 Achievement% 15 Wizard Run 0 Options --------- Layout 1 ASCII 0 Keyboard 0 Movement Mouse Keybinds 0 Fullscreen 2 Font 20/X11 Map View 50x35 Zoom Use 0% Tactical HUD 1 Map Filters NONE Filters NONE Steam 1 RUN: c8a0c8dd-9560-4978-93ce-409061e3ae95